bitfinex-derivatives/quotes_ETHF0:USTF0_20250626
["timestamp","ask_amount","ask_price","bid_price","bid_amount"]
[1750955356189,0.82255,2430.5,2430.3,0.8226]
[1750955356986,3.2078,2430.7,2430.2,8.611551]
[1750955357185,0.82259,2430.4,2430.2,8.611551]
[1750955357579,0.82259,2430.4,2430.3,0.82261]
[1750955358285,3.2078,2430.7,2430.2,8.611551]
[1750955358595,0.82267,2430.1,2430.0,7.68145179]
[1750955358882,0.82267,2430.1,2430.0,14.49945179]
[1750955359090,0.82265,2430.2,2430.1,0.82266]
[1750955359583,0.82267,2430.1,2430.0,6.448621]
[1750955360085,0.82267,2430.1,2430.0,7.271331]
[1750955360474,0.82266,2430.2,2430.0,7.271331]
[1750955360885,1.4553,2430.3,2430.0,6.448621]
[1750955361190,2.27792,2430.3,2430.1,0.82266]
[1750955361388,2.27792,2430.3,2430.1,2.15986]
[1750955361584,0.82264,2430.2,2430.1,2.15986]
[1750955361779,2.27793,2430.3,2430.1,2.15986]
[1750955361987,2.27793,2430.3,2430.2,0.82264]
[1750955362186,2.27793,2430.3,2430.1,2.15985]
[1750955362388,0.82271,2430.0,2429.9,1.23283079]
[1750955362578,1.4553,2430.3,2429.7,4.44063079]
[1750955362579,3.2078,2430.1,2429.7,4.44063079]
[1750955362783,0.82274,2429.9,2429.7,5.26341079]
[1750955363285,0.82277,2429.8,2429.7,5.26341079]
[1750955363487,0.82277,2429.8,2429.7,4.03058]
[1750955363686,0.82277,2429.8,2429.7,3.2078]
[1750955365292,0.82281,2429.7,2429.6,6.818]
[1750955365994,0.8228,2429.8,2429.6,7.64084]
[1750955366195,5.26455,2430.1,2429.6,6.818]
[1750955366595,5.26455,2430.1,2429.4,2.0265]
[1750955366792,0.82291,2429.4,2429.3,1.23283079]
[1750955367194,0.82294,2429.3,2429.2,1.23283079]
[1750955367596,0.82298,2429.2,2429.1,8.74163079]
[1750955368091,0.82298,2429.2,2429.1,9.56464079]
[1750955368296,0.82297,2429.3,2429.1,9.56464079]
[1750955368497,0.82298,2429.2,2429.1,8.74163079]
[1750955368893,0.82296,2429.3,2429.1,8.74163079]
[1750955369201,0.82294,2429.3,2429.1,8.33179]
[1750955369799,0.82294,2429.3,2429.2,0.82298]
[1750955369999,3.2078,2429.5,2429.1,7.5088]
[1750955370000,0.82293,2429.4,2429.1,7.5088]
[1750955370200,0.82293,2429.4,2429.1,8.9304]
[1750955370397,0.82294,2429.3,2429.1,9.75339]
[1750955371299,0.82307,2429.0,2428.9,6.82]
[1750955372001,0.82304,2429.1,2428.9,0.82308]
[1750955372202,0.82307,2429.0,2428.9,0.82308]
[1750955372500,0.82307,2429.0,2428.8,7.6431]
[1750955372798,1.50014,2429.1,2428.9,0.82308]
[1750955373302,0.82305,2429.0,2428.8,9.06469]
[1750955373798,0.82311,2428.8,2428.7,14.001321]
[1750955373996,4.03091,2428.8,2428.7,6.82]
[1750955374198,0.82316,2428.7,2428.6,0.82318]
[1750955374400,3.2078,2429.5,2428.6,8.2078]
[1750955374597,2.24015,2429.9,2429.4,9.656421]
[1750955374798,2.24015,2429.9,2429.7,7.271411]
[1750955374799,1.4174,2429.9,2429.7,7.271411]
[1750955375001,2.24014,2429.9,2429.7,7.271411]
[1750955375192,0.7092,2429.9,2429.8,0.82277]
[1750955375703,0.7092,2429.9,2429.7,7.271421]
[1750955375906,1.53197,2429.9,2429.7,7.271421]
[1750955376101,0.7092,2429.9,2429.7,6.448621]
[1750955376400,0.7092,2429.9,2429.7,7.271401]
[1750955376706,0.7092,2429.9,2429.8,0.82278]
[1750955377904,0.7092,2429.9,2429.7,7.271411]
[1750955378104,0.7092,2429.9,2429.8,0.82277]
[1750955378804,0.7082,2430.2,2429.7,9.656421]
[1750955379005,1.50622,2430.3,2430.1,10.479081]
[1750955379206,1.50622,2430.3,2430.1,7.271281]
[1750955379406,1.50621,2430.3,2430.1,7.271281]
[1750955379608,0.82264,2430.2,2430.1,6.448621]
[1750955380204,1.50623,2430.3,2430.1,6.448621]
[1750955380805,1.50623,2430.3,2430.1,7.271281]
[1750955381006,0.82263,2430.3,2430.1,7.271261]
[1750955381809,0.82263,2430.3,2430.1,8.666561]
[1750955382304,0.82257,2430.4,2430.2,0.82262]
[1750955383314,3.8721,2430.5,2430.1,11.874391]
[1750955383515,0.82261,2430.3,2430.1,11.874391]
[1750955384006,0.82267,2430.1,2430.0,0.7328]
[1750955384414,0.82267,2430.1,2430.0,2.1809]
[1750955384919,0.82266,2430.2,2430.0,3.00361]
[1750955385109,0.82267,2430.1,2430.0,3.00361]
[1750955385519,2.46612972,2430.2,2430.0,2.1809]
[1750955385815,5.67392972,2430.5,2430.4,0.82257]
[1750955386015,5.67392972,2430.5,2430.4,7.271191]
[1750955386319,2.46612972,2430.5,2430.4,7.271191]
[1750955386511,2.46612972,2430.6,2430.4,7.784621]
[1750955386919,2.46612972,2430.7,2430.4,7.784621]
[1750955387520,0.82252,2430.6,2430.4,8.607181]
[1750955387818,0.82254,2430.5,2430.4,7.784621]
[1750955388019,0.82254,2430.5,2430.4,8.607191]
[1750955388320,0.82253,2430.6,2430.4,8.607191]
[1750955388928,0.82254,2430.5,2430.4,8.607191]
[1750955389313,0.82252,2430.6,2430.4,8.607191]
[1750955389624,0.82252,2430.6,2430.5,0.82254]
[1750955389915,0.82254,2430.5,2430.4,8.607171]
[1750955390422,0.82252,2430.6,2430.5,0.82254]
[1750955390719,0.82254,2430.5,2430.4,8.607171]
[1750955390918,0.82254,2430.6,2430.4,8.607171]
[1750955391126,0.82254,2430.5,2430.4,8.607171]
[1750955391420,0.82251,2430.6,2430.4,8.607171]
[1750955392323,0.82249,2430.7,2430.5,0.82254]
[1750955392825,0.8225,2430.6,2430.5,0.82254]
[1750955394422,0.82248,2430.7,2430.6,0.8225]
[1750955394621,3.2078,2430.8,2430.6,3.41182313]
[1750955394925,3.2078,2430.8,2430.7,0.82247]
[1750955395127,2.24543,2430.9,2430.8,0.82244]
[1750955395321,0.6986,2430.9,2430.8,4.23426313]
[1750955395622,1.521,2430.9,2430.8,4.23426313]
[1750955395818,1.521,2430.9,2430.8,3.41182313]
[1750955396025,0.82244,2430.8,2430.7,4.23427313]
[1750955396213,0.82244,2430.8,2430.7,7.59845]
[1750955396418,1.52103,2430.9,2430.7,7.59845]
[1750955398227,0.82244,2430.8,2430.7,7.59845]
[1750955398826,0.82244,2430.8,2430.7,0.82245]
[1750955399025,0.8225,2430.6,2430.5,0.7049]
[1750955399430,1.5562,2430.7,2430.5,1.52743]
[1750955400327,1.5562,2430.7,2430.5,1.52741]
[1750955400328,0.8225,2430.6,2430.5,1.52741]
[1750955400528,0.8225,2430.6,2430.5,7.4809]
[1750955400730,0.7337,2430.7,2430.6,0.8225]
[1750955401223,0.7337,2430.7,2430.3,1.3564]
[1750955401422,2.05627,2430.6,2430.3,6.776]
[1750955401622,0.82257,2430.4,2430.3,7.59861]
[1750955402725,0.6986,2430.9,2430.3,20.28344184]
[1750955402926,0.82245,2430.8,2430.7,6.45098184]
[1750955403122,0.6986,2430.9,2430.5,3.2078]
[1750955403123,0.8225,2430.6,2430.5,3.2078]
[1750955403324,0.6986,2430.9,2430.5,6.776]
[1750955403625,0.6986,2430.9,2430.8,0.82244]
[1750955403925,3.2078,2431.1,2431.0,0.82237]
[1750955404119,3.2078,2431.1,2431.0,7.27335184]
[1750955404318,3.2078,2431.1,2430.8,1.3614]
[1750955404521,0.82238,2431.0,2430.9,0.82239]
[1750955404726,3.2078,2431.1,2431.0,0.82237]
[1750955405023,2.46612972,2431.4,2431.0,7.27335184]
[1750955405225,5.67392972,2431.5,2431.4,0.82223]
[1750955405529,3.2078,2431.5,2431.4,0.82223]
[1750955405823,3.2078,2431.5,2431.3,6.45098184]
[1750955406026,3.2078,2431.5,2431.0,7.55135]
[1750955406218,0.82233,2431.1,2431.0,6.729]
[1750955406420,0.82242,2430.9,2430.8,6.729]
[1750955407122,3.2078,2430.9,2430.5,49.375]
[1750955407422,1.53902,2430.9,2430.7,6.729]
[1750955407628,0.82244,2430.8,2430.7,6.729]
[1750955408028,0.7166,2430.9,2430.7,6.729]
[1750955408326,1.53901,2430.9,2430.7,6.729]
[1750955408624,0.82245,2430.8,2430.6,7.55149]
[1750955408827,5.3148,2430.9,2430.6,8.78432079]
[1750955409028,0.82246,2430.8,2430.6,7.96183079]
[1750955409325,0.8225,2430.6,2430.4,8.37354144]
[1750955409520,0.82254,2430.5,2430.4,7.9528847]
[1750955409821,0.82254,2430.5,2430.3,0.8226]
[1750955410227,0.82254,2430.5,2430.2,6.729]
[1750955410228,2.2296,2430.4,2430.2,6.729]
[1750955410529,0.82261,2430.3,2430.2,6.729]
[1750955410725,0.82264,2430.2,2430.0,5.2543647]
[1750955411026,1.407,2430.4,2430.3,0.82261]
[1750955411229,2.22957,2430.4,2430.2,0.82261]
[1750955411430,2.22957,2430.4,2430.2,0.82262]
[1750955411630,0.82263,2430.3,2430.1,14.00263184]
[1750955411826,0.82267,2430.1,2429.9,1.2238847]
[1750955412033,0.82267,2430.1,2429.9,8.7756147]
[1750955412525,4.532,2430.3,2429.8,7.9528847]
[1750955412829,0.82271,2430.0,2429.8,7.55177]
[1750955413020,4.532,2430.3,2429.9,0.82273]
[1750955413221,0.82268,2430.1,2429.9,0.82273]
[1750955413628,0.82271,2430.0,2429.8,7.55175]
[1750955413931,1.407,2430.4,2430.1,0.82265]
[1750955414131,1.407,2430.4,2430.2,0.82264]
[1750955414329,2.22958,2430.4,2430.2,0.82264]
[1750955414522,2.22958,2430.4,2430.2,2.16984]
[1750955414928,0.82261,2430.3,2430.2,1.3472]
[1750955415126,1.407,2430.4,2430.1,7.27363184]
[1750955415127,0.82264,2430.2,2430.1,6.45098184]
[1750955415330,0.82264,2430.2,2430.1,7.27365184]
[1750955415527,1.407,2430.4,2430.2,0.82264]
[1750955415729,2.2296,2430.4,2430.2,0.82264]
[1750955416035,1.407,2430.4,2430.3,0.82261]
[1750955416338,0.6986,2430.4,2430.3,0.82261]
[1750955416527,3.2078,2430.6,2430.2,6.729]
[1750955416726,3.2078,2430.6,2430.4,6.45098184]
[1750955416934,3.2078,2430.6,2430.3,1.4068]
[1750955417237,3.2078,2430.6,2430.2,14.00261184]
[1750955417429,0.82259,2430.4,2430.2,14.00261184]
[1750955417629,0.82256,2430.5,2430.3,0.82258]
[1750955417830,3.2078,2430.6,2430.3,2.22938]
[1750955417831,0.82257,2430.4,2430.3,2.22938]
[1750955418031,0.82257,2430.4,2430.3,1.4068]
[1750955418231,3.2078,2430.6,2430.2,13.17998184]
[1750955418434,0.82255,2430.5,2430.4,0.82257]
[1750955418936,4.03032,2430.6,2430.4,0.82257]
[1750955419142,0.82254,2430.5,2430.4,0.82257]
[1750955419335,4.03033,2430.6,2430.4,0.82257]
[1750955419539,4.03033,2430.6,2430.3,1.4068]
[1750955419540,3.2078,2430.6,2430.5,0.82254]
[1750955419834,3.2078,2430.6,2430.4,0.82255]
[1750955420040,3.2078,2430.6,2430.5,0.82254]
[1750955422240,4.0303,2430.6,2430.5,0.82254]
[1750955422441,0.82257,2430.4,2430.3,3.4532747]
[1750955422635,0.82257,2430.4,2430.3,7.9538847]
[1750955423139,0.82257,2430.4,2430.3,6.73]
[1750955423531,0.82257,2430.4,2430.3,7.55261]
[1750955423830,0.82261,2430.3,2430.2,8.49747654]
[1750955424026,0.82261,2430.3,2430.2,15.22747654]
[1750955424239,0.82255,2430.5,2430.4,0.82254]
[1750955425136,3.2078,2430.6,2430.3,6.73]
[1750955425442,0.82256,2430.5,2430.4,0.82256]
[1750955425741,4.03033,2430.6,2430.5,0.82254]
[1750955426141,0.82256,2430.5,2430.4,0.82257]
[1750955426341,4.03033,2430.6,2430.5,0.82254]
[1750955427135,0.7216,2430.7,2430.6,0.8225]
[1750955427336,3.2078,2431.0,2430.6,2.05621]
[1750955427537,4.03017,2431.0,2430.9,0.8224]
[1750955428035,8.2078,2431.0,2430.6,6.73]
[1750955428238,0.82254,2430.5,2430.4,1.2238847]
[1750955428538,0.82257,2430.4,2430.3,7.55258]
[1750955428836,0.82262,2430.3,2430.1,12.0296]
[1750955429032,0.82262,2430.3,2430.2,0.82262]
[1750955429429,0.82257,2430.5,2430.3,0.82261]
[1750955429640,0.82257,2430.4,2430.3,0.82261]
[1750955430138,0.82256,2430.5,2430.3,0.82261]
[1750955430339,2.24153,2430.6,2430.2,1.23085104]
[1750955430532,0.82258,2430.4,2430.3,0.82259]
[1750955430732,0.82256,2430.5,2430.4,0.82257]
[1750955430934,2.24154,2430.6,2430.3,7.68183288]
[1750955431137,1.419,2430.6,2430.5,2.05339104]
[1750955431340,2.2415,2430.6,2430.5,1.23085104]
[1750955432542,0.82257,2430.4,2430.3,2.05344104]
[1750955432842,0.82257,2430.4,2430.3,1.23085104]
[1750955433043,0.82256,2430.5,2430.4,0.82257]
[1750955433245,0.82257,2430.4,2430.3,2.05344104]
[1750955433644,2.7649,2430.6,2430.3,2.05344104]
[1750955433847,2.7649,2430.6,2430.3,1.23085104]
[1750955434146,0.82257,2430.4,2430.3,1.23085104]
[1750955434441,0.82257,2430.4,2430.3,0.82259]
[1750955434639,0.82256,2430.5,2430.4,0.82256]
[1750955434843,2.24152,2430.6,2430.5,0.82254]
[1750955435046,4.03029,2430.7,2430.6,0.8225]
[1750955435237,4.0303,2430.7,2430.6,0.8225]
[1750955435541,3.2078,2430.7,2430.6,7.27348184]
[1750955435742,3.2078,2430.7,2430.6,9.33458184]
[1750955436040,0.82245,2430.8,2430.7,0.82247]
[1750955436244,0.82247,2430.7,2430.6,8.51208184]
[1750955436545,0.82247,2430.7,2430.6,9.33458184]
[1750955436848,0.82247,2430.7,2430.6,8.51208184]
[1750955437043,0.82247,2430.7,2430.6,9.33458184]
[1750955437947,0.6687,2430.9,2430.7,0.82247]
[1750955438148,0.6687,2430.9,2430.8,0.82244]
[1750955438339,0.6687,2430.9,2430.6,8.51208184]
[1750955438539,0.82254,2430.5,2430.4,4.43895868]
[1750955438739,5.26399,2430.7,2430.2,2.05378868]
[1750955439046,2.16947,2430.4,2430.3,0.82261]
[1750955439639,1.3469,2430.4,2430.3,0.82261]
[1750955440144,3.2078,2430.7,2430.4,0.82257]
[1750955440445,0.82257,2430.4,2430.3,2.21248]
[1750955440750,4.6038,2430.7,2430.3,7.84088184]
[1750955441050,0.82256,2430.5,2430.4,0.82256]
[1750955441546,0.82252,2430.6,2430.5,0.82252]
[1750955442447,0.82252,2430.6,2430.5,0.82251]
[1750955442650,0.7277,2430.7,2430.6,0.8225]
[1750955442844,0.82242,2430.9,2430.8,0.82244]
[1750955443249,0.82238,2431.0,2430.9,0.82239]
[1750955443444,5.42467,2431.1,2430.9,0.82239]
[1750955443644,5.42467,2431.1,2430.9,0.82238]
[1750955443645,0.82238,2431.0,2430.9,0.82238]
[1750955443946,0.82244,2430.9,2430.6,9.07292576]
[1750955444151,0.82247,2430.7,2430.6,3.44442392]
[1750955444346,0.82247,2430.7,2430.6,2.21238]
[1750955444648,0.82246,2430.8,2430.7,0.82246]
[1750955445048,0.82247,2430.7,2430.6,7.94212989]
[1750955445345,0.82247,2430.7,2430.6,1.23212989]
[1750955445852,0.8225,2430.6,2430.5,1.23212989]
[1750955446046,0.82254,2430.5,2430.4,6.71]
[1750955446349,0.6648,2430.6,2430.4,6.71]
[1750955446546,0.82254,2430.5,2430.4,10.18098989]
[1750955446746,0.6648,2430.6,2430.5,0.82254]
[1750955447147,1.53728,2430.7,2430.6,0.8225]
[1750955447346,0.7148,2430.7,2430.6,0.8225]
[1750955447547,1.53727,2430.7,2430.6,0.8225]
[1750955447749,0.7148,2430.7,2430.6,0.8225]
[1750955448154,1.53729,2430.7,2430.6,1.23212989]
[1750955448855,1.53729,2430.7,2430.6,2.05462989]
[1750955449047,1.53729,2430.7,2430.6,1.23212989]
[1750955449450,0.7148,2430.7,2430.6,2.05462989]
[1750955449756,1.53727,2430.7,2430.6,3.38542989]
[1750955449951,1.53727,2430.7,2430.6,2.56292989]
[1750955450256,1.53727,2430.7,2430.6,3.38542989]
[1750955450855,0.7148,2430.7,2430.6,3.38542989]
[1750955451052,4.03026,2430.8,2430.7,0.82247]
[1750955451053,3.2078,2430.8,2430.7,0.82247]
[1750955451556,4.03024,2430.8,2430.7,0.82247]
[1750955451954,4.03024,2430.8,2430.7,2.05459989]
[1750955452352,4.03024,2430.8,2430.7,5.46619746]
[1750955453156,3.2078,2430.8,2430.7,5.46619746]
[1750955453659,4.03024,2430.8,2430.7,1.23212989]
[1750955453854,0.82247,2430.7,2430.6,1.23212989]
[1750955454055,1.55069,2430.7,2430.6,2.05491548]
[1750955454451,1.55069,2430.7,2430.6,1.23241548]
[1750955455256,1.55069,2430.7,2430.6,2.05491548]
[1750955455958,1.55069,2430.7,2430.6,1.23241548]
[1750955456265,0.8225,2430.6,2430.5,1.23241548]
[1750955456758,0.82254,2430.5,2430.4,1.23241548]
[1750955457558,0.82257,2430.4,2430.3,1.23241548]
[1750955457746,1.54317,2430.4,2430.3,1.23241548]
[1750955458159,0.7206,2430.4,2430.3,5.46662305]
[1750955458853,1.54317,2430.4,2430.3,4.64401305]
[1750955459158,1.54317,2430.4,2430.3,1.23241548]
[1750955459857,0.82264,2430.2,2430.1,1.64108342]
[1750955460153,0.82264,2430.2,2429.9,2.46162514]
[1750955460154,7.53319757,2430.3,2429.9,1.64367279]
[1750955460359,5.2646,2430.0,2429.6,3.41159757]
[1750955460554,4.03063,2429.7,2429.6,3.41159757]
[1750955460955,3.2078,2429.7,2429.6,4.23443757]
[1750955461357,4.03061,2429.7,2429.6,3.41159757]
[1750955462055,0.8228,2429.8,2429.7,0.82281]
[1750955462262,0.82279,2429.8,2429.6,4.23442757]
[1750955462558,1.3952,2429.9,2429.5,0.82287]
[1750955462758,0.82279,2429.8,2429.6,0.82284]
[1750955463553,0.82279,2429.8,2429.4,6.711]
[1750955463554,1.3952,2429.9,2429.4,6.711]
[1750955463754,5.26495,2429.6,2429.0,0.82303]
[1750955463952,0.6685,2429.5,2429.0,6.711]
[1750955464156,0.82301,2429.1,2429.0,6.711]
[1750955464462,1.53012,2429.4,2429.2,0.82295]
[1750955465158,0.7072,2429.4,2429.3,0.82294]
[1750955465362,6.711,2429.8,2429.3,9.66412179]
[1750955465558,5.66925496,2430.2,2429.6,6.45632179]
[1750955465762,1.3928,2430.1,2430.0,0.82271]
[1750955465962,1.3928,2430.1,2430.0,2.23661]
[1750955466160,1.3928,2430.1,2429.7,9.66412179]
[1750955466365,0.82272,2430.0,2429.8,0.82274]
[1750955466665,1.3928,2430.1,2429.7,10.33392179]
[1750955466868,3.2078,2430.2,2430.0,6.45632179]
[1750955467058,4.03045,2430.2,2430.0,6.45632179]
[1750955467365,3.2078,2430.2,2430.1,0.82267]
[1750955467872,4.03046,2430.2,2430.0,0.8227]
[1750955468165,3.2078,2430.2,2430.1,0.82267]
[1750955468465,3.2078,2430.2,2430.1,2.90407]
[1750955469767,5.38451,2430.6,2430.5,0.82254]
[1750955470068,0.82256,2430.5,2430.2,6.709]
[1750955470264,4.562,2430.6,2430.3,0.8226]
[1750955470465,0.82255,2430.5,2430.4,0.82257]
[1750955470667,5.38453,2430.6,2430.4,0.82257]
[1750955471064,0.6833,2430.6,2430.5,0.82254]
[1750955471267,0.82246,2430.8,2430.7,0.82247]
[1750955471567,0.82248,2430.7,2430.3,11.08112179]
[1750955472259,0.82257,2430.5,2430.3,4.03039]
[1750955472455,3.8726,2430.6,2430.1,7.3788]
[1750955472665,0.668,2430.5,2430.4,0.82257]
[1750955473557,3.2078,2430.9,2430.3,9.66412179]
[1750955473869,3.2078,2430.9,2430.8,0.82244]
[1750955475066,3.2078,2430.9,2430.7,1.54695]
[1750955475265,0.82241,2430.9,2430.8,0.82242]
[1750955475964,0.82241,2430.9,2430.8,2.24714]
[1750955476164,0.82241,2430.9,2430.8,1.4247]
[1750955476365,0.82244,2430.8,2430.7,1.54695]
[1750955477365,0.82244,2430.8,2430.6,13.16532179]
[1750955477366,0.82247,2430.7,2430.6,7.5315]
[1750955477566,4.03023,2430.9,2430.7,0.82245]
[1750955477872,3.2078,2430.9,2430.6,7.53049]
[1750955478066,0.82245,2430.8,2430.7,0.82247]
[1750955478267,4.03022,2430.9,2430.7,2.25407]
[1750955478673,0.82232,2431.2,2431.1,0.82233]
[1750955478871,0.8223,2431.2,2431.0,6.45632179]
[1750955479165,0.8223,2431.2,2431.1,0.82231]
[1750955479673,0.82233,2431.1,2431.0,13.98667179]
[1750955479873,0.82232,2431.2,2431.1,0.82233]
[1750955480175,4.03009,2431.3,2431.2,0.8223]
[1750955480367,0.8223,2431.2,2431.1,0.82231]
[1750955481473,4.03008,2431.3,2431.2,0.8223]
[1750955481662,0.82231,2431.2,2431.1,0.82232]
[1750955482467,0.7064,2431.4,2431.3,0.82227]
[1750955482768,0.82233,2431.1,2431.0,10.73814]
[1750955482969,0.7064,2431.4,2430.6,1.362]
[1750955482970,5.93835,2431.3,2430.6,1.362]
[1750955483269,3.2078,2431.0,2430.5,1.52881]
[1750955483475,0.8225,2430.6,2430.5,8.23584]
[1750955483680,0.8225,2430.6,2430.5,7.4133]
[1750955484268,0.8225,2430.6,2430.5,6.707]
[1750955484476,0.8225,2430.6,2430.5,0.82254]
[1750955484675,0.82251,2430.6,2430.5,0.82252]
[1750955484874,0.82251,2430.6,2430.4,60.11535]
[1750955485176,0.82251,2430.6,2430.5,0.82254]
[1750955486877,0.82251,2430.6,2430.4,60.11536]
[1750955487176,3.2078,2430.5,2430.2,7.4044]
[1750955487374,4.03036,2430.5,2430.3,0.82259]
[1750955487780,2.8325,2430.9,2430.5,0.82253]
[1750955487781,0.82249,2430.7,2430.5,0.82253]
[1750955488274,0.8225,2430.6,2430.4,0.82255]
[1750955488474,6.0403,2430.9,2430.5,0.82254]
[1750955488874,6.0403,2430.9,2430.6,0.82249]
[1750955489184,0.8225,2430.6,2430.4,0.82255]
[1750955489573,0.8225,2430.6,2430.5,0.82254]
[1750955491483,0.82257,2430.4,2430.2,11.43481]
[1750955491781,3.2078,2430.6,2430.2,6.707]
[1750955492083,0.8226,2430.4,2430.2,7.52963]
[1750955492577,1.5431,2430.4,2430.2,7.52963]
[1750955492783,0.82261,2430.3,2430.2,7.52963]
[1750955493084,0.82261,2430.3,2430.2,6.707]
[1750955493479,0.82261,2430.3,2430.1,0.82266]
[1750955493682,0.7205,2430.4,2430.2,6.45632179]
[1750955493885,0.7205,2430.4,2430.3,0.82261]
[1750955494082,4.03031,2430.6,2430.5,0.82254]
[1750955494386,0.82249,2430.7,2430.6,0.8225]
[1750955495082,0.82253,2430.6,2430.5,0.82253]
[1750955495287,0.82254,2430.5,2430.4,2.21516]
[1750955495484,0.82253,2430.6,2430.5,0.82254]
[1750955496182,6.0304,2430.9,2430.3,0.7069]
[1750955496486,0.82264,2430.2,2430.1,3.2078]
[1750955496687,0.82263,2430.3,2430.2,0.82264]
[1750955497290,0.82267,2430.1,2430.0,1.6348206]
[1750955497497,0.82288,2429.5,2429.4,3.28216685]
[1750955497683,0.82291,2429.4,2429.3,3.28216685]
[1750955497887,0.82294,2429.3,2429.2,3.28216685]
[1750955498084,1.4185,2429.4,2429.1,3.28216685]
[1750955498282,1.4185,2429.4,2429.3,0.82294]
[1750955498786,0.82295,2429.3,2429.1,0.82299]
[1750955498988,0.82295,2429.3,2429.1,2.28809]
[1750955499289,2.24143,2429.4,2429.1,2.28809]
[1750955499491,0.82294,2429.3,2429.2,1.4651]
[1750955499681,0.82301,2429.1,2429.0,0.6811]
[1750955500189,3.2078,2429.1,2428.5,49.378]
[1750955500384,0.82332,2428.2,2428.1,3.28216685]
[1750955500586,3.2078,2428.4,2427.9,0.6662]
[1750955500784,3.2078,2428.4,2427.9,1.4651]
[1750955500985,3.2078,2428.4,2428.0,0.82336]
[1750955501184,3.2078,2428.4,2428.1,1.4267]
[1750955501391,0.82337,2428.1,2427.8,6.706]
[1750955501597,0.82338,2428.0,2427.9,1.4267]
[1750955501890,0.82342,2427.9,2427.8,6.706]
[1750955502093,3.2078,2428.4,2427.8,6.706]
[1750955502292,3.2078,2428.4,2427.9,2.25009]
[1750955502590,0.82331,2428.3,2428.0,0.82337]
[1750955502889,3.2078,2428.4,2428.0,7.88302179]
[1750955503091,3.2078,2428.4,2428.3,0.82328]
[1750955503277,3.2078,2428.4,2428.0,1.4267]
[1750955503593,3.2078,2428.4,2428.0,7.88302179]
[1750955503792,4.5943,2428.7,2428.2,3.2078]
[1750955503986,4.5943,2428.7,2428.6,0.82318]
[1750955503987,0.6927,2428.7,2428.6,0.82318]
[1750955504187,0.6927,2428.7,2428.5,0.8232]
[1750955504383,0.6927,2428.7,2428.6,0.82318]
[1750955504579,0.6927,2428.7,2428.5,0.8232]
[1750955504785,4.72366,2428.7,2428.4,0.82323]
[1750955504985,3.9005,2428.7,2428.3,8.59002179]
[1750955505186,3.9005,2428.7,2428.6,0.82318]
[1750955505388,3.2078,2428.7,2428.6,0.82318]
[1750955506290,4.74635,2429.0,2428.8,0.8231]
[1750955506488,0.82309,2428.9,2428.5,3.2078]
[1750955506695,0.82308,2428.9,2428.6,0.82317]
[1750955507391,0.82312,2428.8,2428.5,4.03101]
[1750955507586,0.82312,2428.8,2428.5,4.03099]
[1750955507788,3.9233,2429.0,2428.5,3.2078]
[1750955507997,1.362,2428.9,2428.5,3.2078]
[1750955508185,3.2078,2428.6,2428.0,8.51702179]
[1750955508500,0.82327,2428.4,2428.1,6.709]
[1750955508685,3.2078,2428.6,2428.1,6.709]
[1750955508890,0.82332,2428.2,2428.1,6.709]
[1750955509089,0.82338,2428.1,2427.9,3.2078]
[1750955510098,0.8234,2428.0,2427.8,6.71]
[1750955510298,0.6815,2428.2,2427.7,6.71]
[1750955510597,0.82341,2428.0,2427.7,7.53348]
[1750955510798,0.82341,2428.0,2427.7,8.93868]
[1750955510995,2.73984,2428.2,2427.7,8.1152]
[1750955511201,0.82345,2427.8,2427.7,6.71]
[1750955511702,0.82349,2427.7,2427.6,6.71]
[1750955512087,0.82343,2427.9,2427.6,7.53349]
[1750955512293,3.2078,2428.0,2427.6,8.1152]
[1750955512594,3.2078,2428.0,2427.6,14.57152179]
[1750955512790,4.0312,2428.0,2427.8,0.82344]
[1750955513100,0.82346,2427.8,2427.6,15.39502179]
[1750955513286,0.82349,2427.7,2427.6,1.4052]
[1750955513493,0.82344,2427.9,2427.7,0.82349]
[1750955513799,0.82345,2427.8,2427.6,8.9397]
[1750955514401,3.2078,2428.0,2427.6,8.1162]
[1750955514696,0.82345,2427.8,2427.6,8.93969]
[1750955515100,3.2078,2428.0,2427.6,8.1162]
[1750955515301,4.0312,2428.0,2427.8,0.82343]
[1750955515791,3.2078,2428.0,2427.9,0.82342]
[1750955516192,4.03118,2428.0,2427.8,0.82344]
[1750955516694,3.2078,2428.0,2427.7,0.82348]
[1750955516998,0.82344,2427.9,2427.7,0.82349]
[1750955517192,0.82345,2427.8,2427.7,0.82349]
[1750955517394,0.82345,2427.8,2427.6,18.60382179]
[1750955518001,0.82345,2427.8,2427.7,0.82349]
[1750955518196,4.0312,2428.0,2427.6,17.78032179]
[1750955518595,4.03122,2428.0,2427.8,0.82343]
[1750955518901,0.82342,2427.9,2427.8,0.82343]
[1750955519194,0.82342,2427.9,2427.8,0.82345]
[1750955519593,0.82345,2427.8,2427.7,0.82346]
[1750955519794,0.82349,2427.7,2427.6,11.324]
[1750955519995,0.82349,2427.7,2427.3,4.0314]
[1750955519996,0.82358,2427.5,2427.3,4.0314]
[1750955520198,3.2078,2427.7,2427.3,11.2648]
[1750955520402,0.6985,2427.9,2427.4,6.45632179]
[1750955520706,0.6985,2427.9,2427.4,7.80132179]
[1750955521000,0.82355,2427.6,2427.4,0.82356]
[1750955521206,0.82355,2427.5,2427.4,0.82356]
[1750955521395,3.2078,2427.7,2427.4,0.82356]
[1750955521396,1.49984,2427.6,2427.4,0.82356]
[1750955521796,0.82355,2427.5,2427.4,0.82356]